[Event "Fagernes GM Open Autumn 2024"]
[Site "Fagernes"]
[Date "2024.10.12"]
[Round "8.18"]
[White "Skotheim, Andreas"]
[Black "Harish, Neeraj"]
[Result "1/2-1/2"]
[ECO "D95"]
[WhiteElo "2234"]
[BlackElo "2024"]
[Annotator "RC"]
[PlyCount "119"]
[EventDate "2024.10.03"]
[EventType "swiss"]
[EventCountry "NOR"]
[SourceTitle "playchess.com"]
[Source "ChessBase"]
[SourceQuality "1"]
[TimeControl "40/6000:2400+30"]

1. d4 {[%emt 0:00:00]} Nf6 {[%emt 0:00:00]} 2. c4 {[%emt 0:00:00]} g6 {[%emt 0:00:00]} 3. Nc3 {[%emt 0:00:00]} d5 {[%emt 0:00:00]} 4. Nf3 {[%emt 0:00:00]} Bg7 {[%emt 0:00:00]} 5. e3 {[%emt 0:00:00]} O-O {[%emt 0:00:00]} 6. Qb3 {[%emt 0:00:00]} c6 {[%emt 0:04:53]} 7. h3 {[%emt 0:02:36]} Ne4 {[%emt 0:18:52]} 8. a4 {[%emt 0:11:45]} Nxc3 {[%emt 0:03:00]} 9. bxc3 {[%emt 0:00:00]} e6 {[%emt 0:11:37]} 10. Be2 {[%emt 0:14:20]} Nd7 {[%emt 0:00:47]} 11. O-O {[%emt 0:04:02]} Qc7 {[%emt 0:04:07]} 12. Ba3 {[%emt 0:03:55]} Re8 {[%emt 0:00:07]} 13. Rfc1 {[%emt 0:02:27]} dxc4 {[%emt 0:16:21]} 14. Bxc4 {[%emt 0:04:01]} Rb8 {[%emt 0:02:08]} 15. a5 {[%emt 0:11:08]} b5 {[%emt 0:04:26]} 16. axb6 {[%emt 0:00:10]} axb6 {[%emt 0:00:00]} 17. Ng5 {[%emt 0:08:45]} Nf6 {[%emt 0:03:23]} 18. Rcb1 {[%emt 0:00:51]} h6 {[%emt 0:00:38]} 19. Nf3 {[%emt 0:00:01]} Nd7 {[%emt 0:00:27]} 20. Bd3 {[%emt 0:02:17]} Bb7 {[%emt 0:01:13]} 21. Nd2 {[%emt 0:04:21]} c5 {[%emt 0:04:53]} 22. Bb5 {[%emt 0:04:32]} Bc6 {[%emt 0:01:21]} 23. Bxc6 {[%emt 0:00:41]} Qxc6 {[%emt 0:00:00]} 24. Qb5 {[%emt 0:00:15]} Qxb5 {[%emt 0:04:05]} 25. Rxb5 {[%emt 0:00:00]} Ra8 {[%emt 0:00:00]} 26. Rbb1 {[%emt 0:06:47]} cxd4 {[%emt 0:04:56]} 27. cxd4 {[%emt 0:01:31]} e5 {[%emt 0:00:09]} 28. Nf3 {[%emt 0:00:49]} exd4 {[%emt 0:00:00]} 29. Nxd4 {[%emt 0:01:59]} Ra4 {[%emt 0:02:52]} 30. Bd6 {[%emt 0:01:50]} Rea8 {[%emt 0:00:00]} 31. Rxa4 {[%emt 0:00:00]} Rxa4 {[%emt 0:00:00]} 32. Nb5 {[%emt 0:02:18]} Be5 {[%emt 0:03:22]} 33. Bxe5 {[%emt 0:01:34]} Nxe5 {[%emt 0:00:00]} 34. Nc3 {[%emt 0:00:00]} Rc4 {[%emt 0:00:00]} 35. Nd5 {[%emt 0:00:00]} Nd7 {[%emt 0:00:00]} 36. Nxb6 {[%emt 0:00:00]} Nxb6 {[%emt 0:00:00]} 37. Rxb6 {[%emt 0:00:00]} Rc2 {[%emt 0:00:00]} 38. e4 {[%emt 0:03:25]} Re2 {[%emt 0:00:00]} 39. f3 {[%emt 0:00:00]} h5 {[%emt 0:00:00]} 40. Kf1 {[%emt 0:00:35]} Ra2 {[%emt 0:00:00]} 41. e5 {[%emt 0:41:42]} Ra5 {[%emt 0:41:39]} 42. f4 {[%emt 0:00:00]} Ra4 {[%emt 0:00:00]} 43. Rf6 {[%emt 0:00:00]} Kg7 {[%emt 0:00:00]} 44. Kf2 {[%emt 0:00:00]} Ra2+ {[%emt 0:00:00]} 45. Kg3 {[%emt 0:00:00]} h4+ {[%emt 0:00:00]} 46. Kf3 {[%emt 0:00:00]} Ra3+ {[%emt 0:00:00]} 47. Kf2 {[%emt 0:00:00]} Ra2+ {[%emt 0:00:00]} 48. Kf1 {[%emt 0:00:00]} Ra1+ {[%emt 0:00:00]} 49. Ke2 {[%emt 0:00:00]} Ra2+ {[%emt 0:00:00]} 50. Kf3 {[%emt 0:00:00]} Ra3+ {[%emt 0:00:00]} 51. Kf2 {[%emt 0:00:00]} Ra2+ {[%emt 0:00:00]} 52. Kg1 {[%emt 0:00:00]} Ra1+ {[%emt 0:00:00]} 53. Kh2 {[%emt 0:00:00]} Rf1 {[%emt 0:00:00]} 54. g4 {[%emt 0:00:00]} Rf2+ {[%emt 0:00:00]} 55. Kg1 {[%emt 0:00:00]} Ra2 {[%emt 0:00:00]} 56. Rd6 {[%emt 0:00:00]} Ra1+ {[%emt 0:00:00]} 57. Kg2 {[%emt 0:00:00]} Ra2+ {[%emt 0:00:00]} 58. Kg1 {[%emt 0:00:00]} Ra1+ {[%emt 0:00:00]} 59. Kf2 {[%emt 0:00:00]} Ra2+ {[%emt 0:00:00]} 60. Kg1 {[%emt 0:00:00]} 1/2-1/2

[Event "Fagernes GM Open Autumn 2024"]
[Site "Fagernes"]
[Date "2024.10.12"]
[Round "8.19"]
[White "Westrum, Kim Roger Hansen"]
[Black "Welling, Gerard"]
[Result "1/2-1/2"]
[ECO "C00"]
[WhiteElo "2205"]
[BlackElo "2206"]
[Annotator "RC"]
[PlyCount "91"]
[EventDate "2024.10.03"]
[EventType "swiss"]
[EventCountry "NOR"]
[SourceTitle "playchess.com"]
[Source "ChessBase"]
[SourceQuality "1"]
[TimeControl "40/6000:2400+30"]

1. e4 {[%emt 0:00:00]} e6 {[%emt 0:00:00]} 2. d3 {[%emt 0:00:00]} d5 {[%emt 0:00:33]} 3. Qe2 {[%emt 0:00:00]} Nf6 {[%emt 0:04:29]} 4. Nf3 {[%emt 0:00:45]} c5 {[%emt 0:00:02]} 5. e5 {[%emt 0:00:00]} Nfd7 {[%emt 0:00:00]} 6. g3 {[%emt 0:00:00]} Be7 {[%emt 0:00:00]} 7. Bg2 {[%emt 0:00:00]} Nc6 {[%emt 0:00:00]} 8. O-O {[%emt 0:00:00]} O-O {[%emt 0:00:00]} 9. c4 {[%emt 0:00:00]} dxc4 {[%emt 0:00:00]} 10. dxc4 {[%emt 0:00:00]} Nd4 {[%emt 0:00:00]} 11. Nxd4 {[%emt 0:01:50]} cxd4 {[%emt 0:00:00]} 12. Nd2 {[%emt 0:00:00]} Nc5 {[%emt 0:00:20]} 13. Nf3 {[%emt 0:01:15]} a5 {[%emt 0:01:44]} 14. Rd1 {[%emt 0:00:45]} d3 {[%emt 0:00:00]} 15. Qe3 {[%emt 0:05:57]} Qc7 {[%emt 0:02:06]} 16. Qf4 {[%emt 0:20:10]} Bd7 {[%emt 0:04:17]} 17. Be3 {[%emt 0:02:58]} Rad8 {[%emt 0:10:09]} 18. Bxc5 {[%emt 0:03:43]} Qxc5 {[%emt 0:02:34]} 19. Rxd3 {[%emt 0:00:49]} Bc6 {[%emt 0:12:07]} 20. Rad1 {[%emt 0:00:05]} Bxf3 {[%emt 0:09:36]} 21. Bxf3 {[%emt 0:03:01]} Rxd3 {[%emt 0:00:57]} 22. Rxd3 {[%emt 0:00:00]} b6 {[%emt 0:11:05]} 23. Bb7 {[%emt 0:36:31]} Qc7 {[%emt 0:01:47]} 24. Bf3 {[%emt 0:05:59]} Bc5 {[%emt 0:01:30]} 25. Be4 {[%emt 0:00:20]} Be7 {[%emt 0:06:09]} 26. b3 {[%emt 0:02:32]} Rd8 {[%emt 0:01:26]} 27. Rf3 {[%emt 0:00:09]} Bc5 {[%emt 0:01:25]} 28. Bc2 {[%emt 0:02:30]} Rd4 {[%emt 0:00:56]} 29. Qg5 {[%emt 0:00:00]} h6 {[%emt 0:04:24]} 30. Qh5 {[%emt 0:01:22]} Rd2 {[%emt 0:00:10]} 31. Be4 {[%emt 0:00:00]} Qd7 {[%emt 0:04:59]} 32. g4 {[%emt 0:02:14]} Rd4 {[%emt 0:06:35]} 33. Rf4 {[%emt 0:01:13]} Rd2 {[%emt 0:03:39]} 34. a4 {[%emt 0:00:47]} Rxf2 {[%emt 0:02:34]} 35. Rxf2 {[%emt 0:00:05]} Bxf2+ {[%emt 0:00:00]} 36. Kxf2 {[%emt 0:00:00]} Qd2+ {[%emt 0:00:00]} 37. Kg3 {[%emt 0:03:54]} Qe1+ {[%emt 0:00:00]} 38. Kf3 {[%emt 0:00:11]} Qf1+ {[%emt 0:00:00]} 39. Kg3 {[%emt 0:00:11]} Qe1+ {[%emt 0:00:00]} 40. Kf3 {[%emt 0:00:00]} Qf1+ {[%emt 0:00:00]} 41. Ke3 {[%emt 0:41:01]} Qe1+ {[%emt 0:39:55]} 42. Kd4 {[%emt 0:00:00]} Qa1+ {[%emt 0:00:00]} 43. Kd3 {[%emt 0:00:00]} Qb1+ {[%emt 0:00:00]} 44. Ke3 {[%emt 0:00:00]} Qe1+ {[%emt 0:00:00]} 45. Kd4 {[%emt 0:00:00]} Qa1+ {[%emt 0:00:00]} 46. Ke3 {[%emt 0:00:00]} 1/2-1/2

[Event "Fagernes GM Open Autumn 2024"]
[Site "Fagernes"]
[Date "2024.10.12"]
[Round "8.20"]
[White "Southcott-Moyers, Indy"]
[Black "Krishnan, Ritvik"]
[Result "1/2-1/2"]
[ECO "D38"]
[WhiteElo "2143"]
[BlackElo "2206"]
[Annotator "RC"]
[PlyCount "115"]
[EventDate "2024.10.03"]
[EventType "swiss"]
[EventCountry "NOR"]
[SourceTitle "playchess.com"]
[Source "ChessBase"]
[SourceQuality "1"]
[TimeControl "40/6000:2400+30"]

1. d4 {[%emt 0:00:00]} Nf6 {[%emt 0:00:00]} 2. c4 {[%emt 0:00:00]} e6 {[%emt 0:00:00]} 3. Nf3 {[%emt 0:00:00]} d5 {[%emt 0:00:00]} 4. Nc3 {[%emt 0:00:00]} Bb4 {[%emt 0:00:00]} 5. cxd5 {[%emt 0:00:00]} exd5 {[%emt 0:00:00]} 6. Bg5 {[%emt 0:00:00]} h6 {[%emt 0:00:00]} 7. Bh4 {[%emt 0:00:00]} O-O {[%emt 0:00:00]} 8. e3 {[%emt 0:00:00]} Bf5 {[%emt 0:00:00]} 9. Be2 {[%emt 0:00:00]} Nbd7 {[%emt 0:00:00]} 10. Qb3 {[%emt 0:00:00]} Qe7 {[%emt 0:00:00]} 11. a3 {[%emt 0:00:00]} Bxc3+ {[%emt 0:00:00]} 12. Qxc3 {[%emt 0:00:00]} Qe6 {[%emt 0:00:00]} 13. O-O {[%emt 0:04:26]} Ne4 {[%emt 0:00:00]} 14. Qxc7 {[%emt 0:09:27]} Rfc8 {[%emt 0:00:57]} 15. Qxb7 {[%emt 0:03:20]} Rcb8 {[%emt 0:03:36]} 16. Qc7 {[%emt 0:09:39]} Rxb2 {[%emt 0:01:47]} 17. Rfe1 {[%emt 0:06:23]} g5 {[%emt 0:30:56]} 18. Bg3 {[%emt 0:03:36]} Nxg3 {[%emt 0:13:14]} 19. hxg3 {[%emt 0:05:07]} Nf6 {[%emt 0:13:51]} 20. Qe5 {[%emt 0:13:52]} Rc8 {[%emt 0:05:32]} 21. Qxe6 {[%emt 0:10:05]} fxe6 {[%emt 0:01:37]} 22. Ne5 {[%emt 0:01:00]} Rcc2 {[%emt 0:10:55]} 23. Kf1 {[%emt 0:02:39]} Ne4 {[%emt 0:03:30]} 24. Rac1 {[%emt 0:01:12]} Nd2+ {[%emt 0:05:42]} 25. Kg1 {[%emt 0:00:00]} Ra2 {[%emt 0:00:17]} 26. Rxc2 {[%emt 0:04:57]} Rxc2 {[%emt 0:02:36]} 27. g4 {[%emt 0:01:20]} Bh7 {[%emt 0:00:03]} 28. Bb5 {[%emt 0:01:16]} Kf8 {[%emt 0:00:40]} 29. Nc6 {[%emt 0:05:11]} Rc3 {[%emt 0:03:43]} 30. Nxa7 {[%emt 0:00:00]} Rxa3 {[%emt 0:00:00]} 31. Nc6 {[%emt 0:00:00]} Rb3 {[%emt 0:00:00]} 32. Bf1 {[%emt 0:00:00]} Rc3 {[%emt 0:00:15]} 33. Ne5 {[%emt 0:00:00]} Nb3 {[%emt 0:00:01]} 34. Bb5 {[%emt 0:00:31]} Ke7 {[%emt 0:00:00]} 35. Rd1 {[%emt 0:01:05]} Bc2 {[%emt 0:00:00]} 36. Re1 {[%emt 0:00:00]} Kf6 {[%emt 0:00:00]} 37. Kh2 {[%emt 0:02:38]} Bh7 {[%emt 0:00:00]} 38. Ba4 {[%emt 0:01:48]} Nc1 {[%emt 0:00:00]} 39. Rd1 {[%emt 0:00:15]} Nd3 {[%emt 0:00:00]} 40. Nxd3 {[%emt 0:00:00]} Bxd3 {[%emt 0:00:00]} 41. Ra1 {[%emt 0:43:26]} Rc8 {[%emt 0:05:47]} 42. Bd1 {[%emt 0:03:41]} Rc6 {[%emt 0:03:22]} 43. Bf3 {[%emt 0:00:00]} Rb6 {[%emt 0:02:57]} 44. Ra3 {[%emt 0:00:00]} Bg6 {[%emt 0:01:36]} 45. Kg3 {[%emt 0:00:00]} Bh7 {[%emt 0:01:46]} 46. Be2 {[%emt 0:00:00]} Rb2 {[%emt 0:04:30]} 47. Bd1 {[%emt 0:00:00]} Bc2 {[%emt 0:01:42]} 48. Bf3 {[%emt 0:00:00]} Bb3 {[%emt 0:05:26]} 49. Ra6 {[%emt 0:00:00]} Rd2 {[%emt 0:01:18]} 50. Ra7 {[%emt 0:00:00]} Bc4 {[%emt 0:05:05]} 51. Rh7 {[%emt 0:00:00]} Kg6 {[%emt 0:00:19]} 52. Re7 {[%emt 0:00:00]} Kf6 {[%emt 0:00:07]} 53. Ra7 {[%emt 0:00:00]} Bb3 {[%emt 0:00:47]} 54. Ra1 {[%emt 0:00:00]} Kf7 {[%emt 0:03:02]} 55. Rb1 {[%emt 0:00:00]} Ba2 {[%emt 0:00:48]} 56. Re1 {[%emt 0:00:00]} Bc4 {[%emt 0:00:15]} 57. Rd1 {[%emt 0:00:00]} Rb2 {[%emt 0:01:49]} 58. Ra1 {[%emt 0:00:00]} 1/2-1/2

[Event "Fagernes GM Open Autumn 2024"]
[Site "Fagernes"]
[Date "2024.10.12"]
[Round "8.21"]
[White "Gudbrandsen, Gustav"]
[Black "Aamodt, Peder Marcus"]
[Result "1-0"]
[ECO "B52"]
[WhiteElo "2197"]
[BlackElo "2126"]
[Annotator "RC"]
[PlyCount "111"]
[EventDate "2024.10.03"]
[EventType "swiss"]
[EventCountry "NOR"]
[SourceTitle "playchess.com"]
[Source "ChessBase"]
[SourceQuality "1"]
[TimeControl "40/6000:2400+30"]

1. e4 {[%emt 0:00:00]} c5 {[%emt 0:04:36]} 2. Nf3 {[%emt 0:00:00]} d6 {[%emt 0:00:00]} 3. Bb5+ {[%emt 0:00:00]} Bd7 {[%emt 0:00:00]} 4. Bxd7+ {[%emt 0:00:01]} Nxd7 {[%emt 0:00:00]} 5. O-O {[%emt 0:03:04]} Ngf6 {[%emt 0:00:00]} 6. Re1 {[%emt 0:00:12]} e6 {[%emt 0:00:11]} 7. c4 {[%emt 0:02:05]} Ne5 {[%emt 0:09:55]} 8. d3 {[%emt 0:00:00]} Be7 {[%emt 0:02:25]} 9. Nc3 {[%emt 0:06:17]} O-O {[%emt 0:03:43]} 10. Bf4 {[%emt 0:14:00]} Nfd7 {[%emt 0:02:16]} 11. Qe2 {[%emt 0:15:28]} a6 {[%emt 0:06:06]} 12. Bg3 {[%emt 0:08:59]} Bf6 {[%emt 0:03:51]} 13. Nd2 {[%emt 0:00:15]} Qe7 {[%emt 0:08:00]} 14. f4 {[%emt 0:01:21]} Nc6 {[%emt 0:00:05]} 15. Nf3 {[%emt 0:01:03]} Bd4+ {[%emt 0:07:04]} 16. Kh1 {[%emt 0:01:19]} f6 {[%emt 0:14:15]} 17. Qd2 {[%emt 0:02:46]} Rab8 {[%emt 0:04:09]} 18. a4 {[%emt 0:06:06]} Qf7 {[%emt 0:02:12]} 19. Ne2 {[%emt 0:04:17]} e5 {[%emt 0:00:04]} 20. Nexd4 {[%emt 0:07:17]} cxd4 {[%emt 0:00:43]} 21. b4 {[%emt 0:00:23]} a5 {[%emt 0:00:25]} 22. b5 {[%emt 0:03:35]} Nb4 {[%emt 0:00:00]} 23. Rf1 {[%emt 0:02:01]} Qh5 {[%emt 0:04:26]} 24. f5 {[%emt 0:01:02]} Nc5 {[%emt 0:00:00]} 25. Ra3 {[%emt 0:00:00]} Rbc8 {[%emt 0:12:47]} 26. Ne1 {[%emt 0:07:23]} g6 {[%emt 0:03:42]} 27. Rf3 {[%emt 0:00:31]} Qg5 {[%emt 0:01:12]} 28. Qd1 {[%emt 0:02:05]} Kf7 {[%emt 0:00:47]} 29. Bf2 {[%emt 0:00:18]} Qh5 {[%emt 0:00:18]} 30. Qb1 {[%emt 0:01:39]} g5 {[%emt 0:01:38]} 31. Nc2 {[%emt 0:00:26]} g4 {[%emt 0:00:29]} 32. Rg3 {[%emt 0:00:00]} Qg5 {[%emt 0:00:00]} 33. Nxb4 {[%emt 0:00:09]} axb4 {[%emt 0:00:00]} 34. Qxb4 {[%emt 0:00:20]} Qc1+ {[%emt 0:00:00]} 35. Bg1 {[%emt 0:00:59]} h5 {[%emt 0:00:17]} 36. Ra2 {[%emt 0:00:00]} Rg8 {[%emt 0:00:13]} 37. h4 {[%emt 0:00:00]} gxh3 {[%emt 0:03:21]} 38. Rxh3 {[%emt 0:00:00]} Rg5 {[%emt 0:00:00]} 39. a5 {[%emt 0:00:00]} Qd1 {[%emt 0:00:00]} 40. a6 {[%emt 0:00:09]} b6 {[%emt 0:00:17]} 41. Qd2 {[%emt 0:41:26]} Qb1 {[%emt 0:03:42]} 42. Qe2 {[%emt 0:00:00]} Kg7 {[%emt 0:02:53]} 43. Kh2 {[%emt 0:00:00]} Rg8 {[%emt 0:03:58]} 44. Bf2 {[%emt 0:00:00]} Kf7 {[%emt 0:03:26]} 45. Rg3 {[%emt 0:00:00]} Rg4 {[%emt 0:00:24]} 46. a7 {[%emt 0:00:00]} Ra8 {[%emt 0:09:01]} 47. Rxg4 {[%emt 0:00:00]} hxg4 {[%emt 0:00:04]} 48. Qxg4 {[%emt 0:00:00]} Rh8+ {[%emt 0:16:46]} 49. Bh4 {[%emt 0:00:00]} Qxa2 {[%emt 0:00:02]} 50. Qg6+ {[%emt 0:00:00]} Kf8 {[%emt 0:00:13]} 51. Qxf6+ {[%emt 0:00:00]} Kg8 {[%emt 0:00:01]} 52. Qd8+ {[%emt 0:00:00]} Kh7 {[%emt 0:00:15]} 53. Qe7+ {[%emt 0:00:00]} Kg8 {[%emt 0:00:54]} 54. Qe8+ {[%emt 0:00:00]} Kg7 {[%emt 0:00:05]} 55. f6+ {[%emt 0:00:00]} Kh7 {[%emt 0:00:02]} 56. Qf7+ {[%emt 0:00:00]} 1-0

[Event "Fagernes GM Open Autumn 2024"]
[Site "Fagernes"]
[Date "2024.10.12"]
[Round "8.22"]
[White "Kaewpitakkun, Pantham"]
[Black "Soham Datar"]
[Result "1/2-1/2"]
[ECO "B81"]
[WhiteElo "2023"]
[BlackElo "2188"]
[Annotator "RC"]
[PlyCount "65"]
[EventDate "2024.10.03"]
[EventType "swiss"]
[EventCountry "NOR"]
[SourceTitle "playchess.com"]
[Source "ChessBase"]
[SourceQuality "1"]
[TimeControl "40/6000:2400+30"]

1. e4 {[%emt 0:00:00]} c5 {[%emt 0:03:16]} 2. Nf3 {[%emt 0:00:00]} e6 {[%emt 0:00:14]} 3. d4 {[%emt 0:00:00]} cxd4 {[%emt 0:00:00]} 4. Nxd4 {[%emt 0:00:00]} Nf6 {[%emt 0:00:00]} 5. Nc3 {[%emt 0:00:00]} d6 {[%emt 0:00:00]} 6. g4 {[%emt 0:04:23]} h6 {[%emt 0:00:11]} 7. h4 {[%emt 0:03:48]} Nc6 {[%emt 0:00:00]} 8. Rg1 {[%emt 0:03:05]} h5 {[%emt 0:06:07]} 9. g5 {[%emt 0:02:49]} Ng4 {[%emt 0:01:13]} 10. Nxc6 {[%emt 0:08:23]} bxc6 {[%emt 0:01:00]} 11. Be2 {[%emt 0:00:19]} g6 {[%emt 0:24:49]} 12. Qd4 {[%emt 0:05:55]} Qb6 {[%emt 0:04:31]} 13. Qxb6 {[%emt 0:03:48]} axb6 {[%emt 0:00:00]} 14. Bf4 {[%emt 0:08:57]} Ne5 {[%emt 0:07:01]} 15. O-O-O {[%emt 0:01:24]} Be7 {[%emt 0:01:17]} 16. a4 {[%emt 0:01:29]} Ba6 {[%emt 0:00:48]} 17. Bxa6 {[%emt 0:06:43]} Rxa6 {[%emt 0:00:00]} 18. b3 {[%emt 0:01:06]} O-O {[%emt 0:00:17]} 19. Rg3 {[%emt 0:03:21]} Ra7 {[%emt 0:07:33]} 20. Ne2 {[%emt 0:06:29]} f6 {[%emt 0:14:29]} 21. Nd4 {[%emt 0:05:19]} fxg5 {[%emt 0:01:55]} 22. Bxe5 {[%emt 0:00:53]} dxe5 {[%emt 0:00:00]} 23. Nxc6 {[%emt 0:00:30]} Ba3+ {[%emt 0:00:00]} 24. Kb1 {[%emt 0:00:00]} Rc7 {[%emt 0:00:00]} 25. Nxe5 {[%emt 0:00:38]} g4 {[%emt 0:04:59]} 26. f3 {[%emt 0:11:23]} gxf3 {[%emt 0:01:06]} 27. Rxf3 {[%emt 0:03:03]} Rxf3 {[%emt 0:00:00]} 28. Nxf3 {[%emt 0:00:00]} Kg7 {[%emt 0:03:50]} 29. Nd4 {[%emt 0:01:03]} Re7 {[%emt 0:00:19]} 30. Nc6 {[%emt 0:08:30]} Rc7 {[%emt 0:00:14]} 31. Nd4 {[%emt 0:01:41]} Re7 {[%emt 0:00:00]} 32. Nc6 {[%emt 0:01:26]} Rc7 {[%emt 0:00:00]} 33. Nd4 {[%emt 0:01:08]} 1/2-1/2

[Event "Fagernes GM Open Autumn 2024"]
[Site "Fagernes"]
[Date "2024.10.12"]
[Round "8.23"]
[White "Gaikwad, Siddhant"]
[Black "Sian, Shadi"]
[Result "1-0"]
[ECO "C42"]
[WhiteElo "2039"]
[BlackElo "2182"]
[Annotator "RC"]
[PlyCount "77"]
[EventDate "2024.10.03"]
[EventType "swiss"]
[EventCountry "NOR"]
[SourceTitle "playchess.com"]
[Source "ChessBase"]
[SourceQuality "1"]
[TimeControl "40/6000:2400+30"]

1. e4 {[%emt 1:38:38]} e5 {[%emt 1:09:50]} 2. Nf3 {[%emt 0:00:00]} Nf6 {[%emt 0:00:00]} 3. Nxe5 {[%emt 0:00:00]} d6 {[%emt 0:00:00]} 4. Nf3 {[%emt 0:00:00]} Nxe4 {[%emt 0:00:00]} 5. Nc3 {[%emt 0:00:00]} Nxc3 {[%emt 0:00:00]} 6. dxc3 {[%emt 0:00:00]} Be7 {[%emt 0:00:00]} 7. Be3 {[%emt 0:00:00]} O-O {[%emt 0:00:00]} 8. Qd2 {[%emt 0:00:00]} Nd7 {[%emt 0:00:00]} 9. g4 {[%emt 0:00:00]} Nf6 {[%emt 0:00:00]} 10. g5 {[%emt 0:00:00]} Ng4 {[%emt 0:00:00]} 11. O-O-O {[%emt 0:00:00]} Nxe3 {[%emt 0:00:00]} 12. Qxe3 {[%emt 0:00:00]} Re8 {[%emt 0:00:00]} 13. Qf4 {[%emt 0:00:00]} Qd7 {[%emt 0:00:00]} 14. Rg1 {[%emt 0:00:00]} Qf5 {[%emt 0:00:00]} 15. Qg3 {[%emt 0:00:00]} Qa5 {[%emt 0:00:00]} 16. Bc4 {[%emt 0:00:00]} Be6 {[%emt 0:00:00]} 17. Bxe6 {[%emt 0:00:00]} fxe6 {[%emt 0:00:00]} 18. Kb1 {[%emt 0:00:00]} Qf5 {[%emt 0:00:00]} 19. Nh4 {[%emt 0:00:00]} Qb5 {[%emt 0:00:00]} 20. Qg4 {[%emt 0:00:00]} Bf8 {[%emt 0:00:00]} 21. f4 {[%emt 0:00:00]} g6 {[%emt 0:00:00]} 22. Rge1 {[%emt 0:00:00]} Bg7 {[%emt 0:00:00]} 23. Rd3 {[%emt 0:00:00]} Qc4 {[%emt 0:00:00]} 24. Rde3 {[%emt 0:00:00]} e5 {[%emt 0:00:00]} 25. b3 {[%emt 0:00:00]} Qe6 {[%emt 0:00:00]} 26. f5 {[%emt 0:00:00]} gxf5 {[%emt 0:00:00]} 27. Nxf5 {[%emt 0:00:00]} d5 {[%emt 0:00:00]} 28. Rh3 {[%emt 0:00:00]} e4 {[%emt 0:00:00]} 29. Rg1 {[%emt 0:00:00]} Qg6 {[%emt 0:00:00]} 30. Nh4 {[%emt 0:00:00]} Qe6 {[%emt 0:00:00]} 31. g6 {[%emt 0:00:00]} hxg6 {[%emt 0:00:00]} 32. Qg2 {[%emt 0:00:00]} e3 {[%emt 0:00:00]} 33. Nxg6 {[%emt 0:00:00]} e2 {[%emt 0:00:00]} 34. Re1 {[%emt 0:00:00]} Qe4 {[%emt 0:00:00]} 35. Qg5 {[%emt 0:00:00]} d4 {[%emt 0:00:00]} 36. Rh4 {[%emt 0:00:00]} Qe3 {[%emt 0:00:00]} 37. Qh5 {[%emt 0:00:00]} Re4 {[%emt 0:00:00]} 38. Qh7+ {[%emt 0:00:00]} Kf7 {[%emt 0:00:00]} 39. Rxe4 {[%emt 0:00:00]} 1-0

[Event "Fagernes GM Open Autumn 2024"]
[Site "Fagernes"]
[Date "2024.10.12"]
[Round "8.24"]
[White "Gasland, Lukas Dominik"]
[Black "Vijayakumar, Rishi"]
[Result "1/2-1/2"]
[ECO "A30"]
[WhiteElo "1905"]
[BlackElo "2172"]
[Annotator "RC"]
[PlyCount "55"]
[EventDate "2024.10.03"]
[EventType "swiss"]
[EventCountry "NOR"]
[SourceTitle "playchess.com"]
[Source "ChessBase"]
[SourceQuality "1"]
[TimeControl "40/6000:2400+30"]

1. Nf3 {[%emt 0:00:00]} Nf6 {[%emt 0:00:00]} 2. g3 {[%emt 0:00:00]} c5 {[%emt 0:00:00]} 3. Bg2 {[%emt 0:00:00]} Nc6 {[%emt 0:00:00]} 4. O-O {[%emt 0:00:00]} e5 {[%emt 0:00:00]} 5. c4 {[%emt 0:00:00]} d5 {[%emt 0:00:00]} 6. cxd5 {[%emt 0:00:00]} Nxd5 {[%emt 0:00:00]} 7. Nc3 {[%emt 0:01:28]} Be6 {[%emt 0:00:00]} 8. Qa4 {[%emt 0:04:58]} f6 {[%emt 0:11:06]} 9. d3 {[%emt 0:17:22]} Qd7 {[%emt 0:04:10]} 10. Be3 {[%emt 0:02:05]} Be7 {[%emt 0:04:51]} 11. Rac1 {[%emt 0:00:59]} b6 {[%emt 0:10:26]} 12. Nh4 {[%emt 0:01:56]} O-O {[%emt 0:05:37]} 13. Nxd5 {[%emt 0:08:47]} Bxd5 {[%emt 0:00:00]} 14. Nf5 {[%emt 0:00:31]} Bxg2 {[%emt 0:12:11]} 15. Qg4 {[%emt 0:00:55]} Kf7 {[%emt 0:00:00]} 16. Qh5+ {[%emt 0:31:12]} Kg8 {[%emt 0:00:38]} 17. Qg4 {[%emt 0:03:11]} Kf7 {[%emt 0:00:00]} 18. Qh5+ {[%emt 0:00:00]} g6 {[%emt 0:05:36]} 19. Qxh7+ {[%emt 0:00:38]} Ke6 {[%emt 0:00:00]} 20. Ng7+ {[%emt 0:05:54]} Kf7 {[%emt 0:00:00]} 21. Nf5+ {[%emt 0:00:48]} Ke6 {[%emt 0:00:00]} 22. Ng7+ {[%emt 0:00:00]} Kd6 {[%emt 0:17:01]} 23. Kxg2 {[%emt 0:00:00]} Rh8 {[%emt 0:03:16]} 24. Qxg6 {[%emt 0:00:00]} Qh3+ {[%emt 0:00:19]} 25. Kf3 {[%emt 0:00:00]} Kc7 {[%emt 0:10:21]} 26. Qf5 {[%emt 0:00:53]} e4+ {[%emt 0:01:30]} 27. Kxe4 {[%emt 0:03:39]} Qg2+ {[%emt 0:00:00]} 28. Qf3 {[%emt 0:01:37]} 1/2-1/2

[Event "Fagernes GM Open Autumn 2024"]
[Site "Fagernes"]
[Date "2024.10.12"]
[Round "8.25"]
[White "Mannion, Stephen R"]
[Black "Simonsen, David Mindestrommen"]
[Result "1/2-1/2"]
[ECO "B93"]
[WhiteElo "2142"]
[BlackElo "1930"]
[Annotator "RC"]
[PlyCount "84"]
[EventDate "2024.10.03"]
[EventType "swiss"]
[EventCountry "NOR"]
[SourceTitle "playchess.com"]
[Source "ChessBase"]
[SourceQuality "1"]
[TimeControl "40/6000:2400+30"]

1. e4 {[%emt 0:00:00]} c5 {[%emt 0:00:00]} 2. Nf3 {[%emt 0:00:00]} d6 {[%emt 0:00:00]} 3. d4 {[%emt 0:00:00]} cxd4 {[%emt 0:00:00]} 4. Nxd4 {[%emt 0:00:00]} Nf6 {[%emt 0:00:00]} 5. Nc3 {[%emt 0:00:00]} a6 {[%emt 0:00:00]} 6. f4 {[%emt 0:00:00]} e5 {[%emt 0:00:00]} 7. Nf3 {[%emt 0:00:00]} Nbd7 {[%emt 0:00:00]} 8. a4 {[%emt 0:00:00]} Qc7 {[%emt 0:00:00]} 9. Bd3 {[%emt 0:00:00]} Be7 {[%emt 0:00:00]} 10. O-O {[%emt 0:00:00]} O-O {[%emt 0:00:00]} 11. Kh1 {[%emt 0:00:00]} Nc5 {[%emt 0:07:56]} 12. Qe1 {[%emt 0:00:00]} Re8 {[%emt 0:02:12]} 13. fxe5 {[%emt 0:00:00]} dxe5 {[%emt 0:00:00]} 14. Qg3 {[%emt 0:00:00]} Be6 {[%emt 0:00:03]} 15. Ng5 {[%emt 0:00:00]} Nxd3 {[%emt 0:00:00]} 16. Nxe6 {[%emt 0:00:00]} fxe6 {[%emt 0:00:00]} 17. cxd3 {[%emt 0:00:00]} Rf8 {[%emt 0:01:58]} 18. Be3 {[%emt 0:00:00]} Nd7 {[%emt 0:06:42]} 19. Qg4 {[%emt 0:03:29]} Qd6 {[%emt 0:03:30]} 20. Bh6 {[%emt 0:06:15]} Rxf1+ {[%emt 0:03:27]} 21. Rxf1 {[%emt 0:00:00]} Bf8 {[%emt 0:01:21]} 22. h4 {[%emt 0:18:22]} Kh8 {[%emt 0:05:49]} 23. Bg5 {[%emt 0:00:00]} Be7 {[%emt 0:02:46]} 24. Rf7 {[%emt 0:33:08]} Nf6 {[%emt 0:02:47]} 25. Qg3 {[%emt 0:01:57]} Rf8 {[%emt 0:04:49]} 26. Rxf8+ {[%emt 0:16:39]} Bxf8 {[%emt 0:00:00]} 27. Qf3 {[%emt 0:00:00]} Be7 {[%emt 0:05:42]} 28. g4 {[%emt 0:03:26]} Nd7 {[%emt 0:03:46]} 29. Bxe7 {[%emt 0:04:07]} Qxe7 {[%emt 0:00:00]} 30. g5 {[%emt 0:02:02]} Kg8 {[%emt 0:04:51]} 31. Kg2 {[%emt 0:02:01]} Qb4 {[%emt 0:01:37]} 32. Qe2 {[%emt 0:00:38]} Nc5 {[%emt 0:00:23]} 33. Qc2 {[%emt 0:01:00]} Qd4 {[%emt 0:01:24]} 34. Ne2 {[%emt 0:00:16]} Qxd3 {[%emt 0:00:24]} 35. Qxc5 {[%emt 0:00:00]} Qxe2+ {[%emt 0:00:00]} 36. Kg3 {[%emt 0:00:46]} Qe1+ {[%emt 0:03:26]} 37. Kh3 {[%emt 0:00:36]} Qf1+ {[%emt 0:00:05]} 38. Kg3 {[%emt 0:00:18]} Qf4+ {[%emt 0:00:00]} 39. Kh3 {[%emt 0:00:00]} Qf3+ {[%emt 0:00:39]} 40. Kh2 {[%emt 0:00:00]} Qf4+ {[%emt 0:00:00]} 41. Kh3 {[%emt 0:40:08]} Qf3+ {[%emt 0:45:06]} 42. Kh2 {[%emt 0:00:18]} Qf4+ {[%emt 0:01:04]} 1/2-1/2